[Event "Live Chess"]
[Site "Chess.com"]
[Date "2010.12.06"]
[Round "-"]
[White "hipposcottimus"]
[Black "JeeBusSS"]
[Result "0-1"]
[CurrentPosition "8/4R3/8/8/2b3n1/3n4/PP1K3k/8 w - -"]
[Timezone "UTC"]
[ECO "C41"]
[ECOUrl "https://www.chess.com/openings/Philidor-Defense-3.d4"]
[UTCDate "2010.12.06"]
[UTCTime "23:08:04"]
[WhiteElo "1633"]
[BlackElo "1508"]
[TimeControl "60"]
[Termination "JeeBusSS won on time"]
[StartTime "23:08:04"]
[EndDate "2010.12.06"]
[EndTime "23:10:12"]
[Link "https://www.chess.com/game/live/74743408"]

1. e4 {[%clk 0:01:00]} 1... e5 {[%clk 0:01:00]} 2. Nf3 {[%clk 0:00:58.2]} 2... d6 {[%clk 0:00:59.7]} 3. d4 {[%clk 0:00:57.8]} 3... f6 {[%clk 0:00:59.4]} 4. dxe5 {[%clk 0:00:57]} 4... dxe5 {[%clk 0:00:58.9]} 5. Qxd8+ {[%clk 0:00:55.7]} 5... Kxd8 {[%clk 0:00:57.9]} 6. Nc3 {[%clk 0:00:55.5]} 6... g5 {[%clk 0:00:57.5]} 7. Bxg5 {[%clk 0:00:51.7]} 7... fxg5 {[%clk 0:00:56.5]} 8. Nxg5 {[%clk 0:00:51.4]} 8... Be7 {[%clk 0:00:56.1]} 9. Nf7+ {[%clk 0:00:50.4]} 9... Ke8 {[%clk 0:00:54.2]} 10. Nxh8 {[%clk 0:00:48.3]} 10... c6 {[%clk 0:00:53.9]} 11. O-O-O {[%clk 0:00:45]} 11... b5 {[%clk 0:00:53.5]} 12. Bxb5 {[%clk 0:00:42.1]} 12... cxb5 {[%clk 0:00:52.7]} 13. Nxb5 {[%clk 0:00:41.8]} 13... Na6 {[%clk 0:00:46.2]} 14. Rhf1 {[%clk 0:00:36]} 14... Bf6 {[%clk 0:00:45]} 15. f4 {[%clk 0:00:35.3]} 15... Bxh8 {[%clk 0:00:44.3]} 16. fxe5 {[%clk 0:00:34.3]} 16... Bxe5 {[%clk 0:00:44]} 17. Rf2 {[%clk 0:00:33.3]} 17... Nf6 {[%clk 0:00:42.5]} 18. Rdf1 {[%clk 0:00:31.4]} 18... Ng4 {[%clk 0:00:41.7]} 19. Rf8+ {[%clk 0:00:29.5]} 19... Ke7 {[%clk 0:00:41.1]} 20. R8f7+ {[%clk 0:00:28.2]} 20... Ke6 {[%clk 0:00:39.9]} 21. Rxh7 {[%clk 0:00:21.1]} 21... Bd4 {[%clk 0:00:38.9]} 22. Rh6+ {[%clk 0:00:20.1]} 22... Ke5 {[%clk 0:00:36.9]} 23. Nxd4 {[%clk 0:00:18.6]} 23... Nxh6 {[%clk 0:00:35.9]} 24. Nf3+ {[%clk 0:00:16.2]} 24... Kxe4 {[%clk 0:00:35.2]} 25. Ng5+ {[%clk 0:00:15.5]} 25... Ke3 {[%clk 0:00:33.9]} 26. Re1+ {[%clk 0:00:12.8]} 26... Kf2 {[%clk 0:00:32.4]} 27. Rd1 {[%clk 0:00:12.5]} 27... Kxg2 {[%clk 0:00:31.6]} 28. Ne4 {[%clk 0:00:11.2]} 28... Kxh2 {[%clk 0:00:30.9]} 29. Nd6 {[%clk 0:00:10.9]} 29... Bd7 {[%clk 0:00:29.5]} 30. Nb5 {[%clk 0:00:10.5]} 30... Rd8 {[%clk 0:00:28.1]} 31. c4 {[%clk 0:00:10]} 31... Bxb5 {[%clk 0:00:26.3]} 32. Rxd8 {[%clk 0:00:08.9]} 32... Bxc4 {[%clk 0:00:24]} 33. Ra8 {[%clk 0:00:08.5]} 33... Nb4 {[%clk 0:00:22.4]} 34. Rxa7 {[%clk 0:00:07.8]} 34... Nd3+ {[%clk 0:00:21.6]} 35. Kd2 {[%clk 0:00:05.7]} 35... Ne5 {[%clk 0:00:19.5]} 36. Kc3 {[%clk 0:00:05.4]} 36... Nhg4 {[%clk 0:00:17.4]} 37. Re7 {[%clk 0:00:02.4]} 37... Nf3 {[%clk 0:00:15.1]} 38. Kc2 {[%clk 0:00:00.9]} 38... Ne1+ {[%clk 0:00:13.4]} 39. Kd2 {[%clk 0:00:00.6]} 39... Nd3 {[%clk 0:00:11.5]} 0-1

[Event "Live Chess"]
[Site "Chess.com"]
[Date "2010.12.06"]
[Round "-"]
[White "JeeBusSS"]
[Black "hipposcottimus"]
[Result "0-1"]
[CurrentPosition "1r4k1/q4ppp/8/6P1/K7/7N/P6P/R2R4 w - -"]
[Timezone "UTC"]
[ECO "A00"]
[ECOUrl "https://www.chess.com/openings/Saragossa-Opening-1...e5"]
[UTCDate "2010.12.06"]
[UTCTime "23:06:22"]
[WhiteElo "1496"]
[BlackElo "1643"]
[TimeControl "60"]
[Termination "hipposcottimus won by checkmate"]
[StartTime "23:06:22"]
[EndDate "2010.12.06"]
[EndTime "23:07:40"]
[Link "https://www.chess.com/game/live/74743003"]

1. c3 {[%clk 0:01:00]} 1... e5 {[%clk 0:01:00]} 2. d4 {[%clk 0:00:59.7]} 2... e4 {[%clk 0:00:59.7]} 3. b4 {[%clk 0:00:58.7]} 3... d5 {[%clk 0:00:59.2]} 4. f3 {[%clk 0:00:58]} 4... Nc6 {[%clk 0:00:58.6]} 5. g4 {[%clk 0:00:57.5]} 5... exf3 {[%clk 0:00:57.5]} 6. exf3 {[%clk 0:00:56.3]} 6... Nxb4 {[%clk 0:00:56.9]} 7. cxb4 {[%clk 0:00:55.3]} 7... Bxb4+ {[%clk 0:00:56.5]} 8. Bd2 {[%clk 0:00:53.9]} 8... Bd6 {[%clk 0:00:56.2]} 9. Qe2+ {[%clk 0:00:53.2]} 9... Ne7 {[%clk 0:00:54.6]} 10. f4 {[%clk 0:00:52]} 10... O-O {[%clk 0:00:52.4]} 11. f5 {[%clk 0:00:50.8]} 11... Re8 {[%clk 0:00:50.1]} 12. g5 {[%clk 0:00:50]} 12... Nxf5 {[%clk 0:00:48.3]} 13. Bh3 {[%clk 0:00:48.2]} 13... Rxe2+ {[%clk 0:00:46.1]} 14. Kxe2 {[%clk 0:00:47]} 14... Nxd4+ {[%clk 0:00:45.6]} 15. Kd3 {[%clk 0:00:45.2]} 15... Bf5+ {[%clk 0:00:41.5]} 16. Kxd4 {[%clk 0:00:44.5]} 16... Bxh3 {[%clk 0:00:40.3]} 17. Kxd5 {[%clk 0:00:43.9]} 17... c5 {[%clk 0:00:39.9]} 18. Nxh3 {[%clk 0:00:42.9]} 18... Bf4+ {[%clk 0:00:38.3]} 19. Kxc5 {[%clk 0:00:42.2]} 19... Bxd2 {[%clk 0:00:37.6]} 20. Nxd2 {[%clk 0:00:41.6]} 20... Qxd2 {[%clk 0:00:36.7]} 21. Rhd1 {[%clk 0:00:41.2]} 21... Rc8+ {[%clk 0:00:35]} 22. Kb5 {[%clk 0:00:40.2]} 22... a6+ {[%clk 0:00:32.6]} 23. Kb6 {[%clk 0:00:39.3]} 23... Qb4+ {[%clk 0:00:30.7]} 24. Ka7 {[%clk 0:00:38.2]} 24... Qc5+ {[%clk 0:00:29]} 25. Kxb7 {[%clk 0:00:36.3]} 25... Qc7+ {[%clk 0:00:27.3]} 26. Kxa6 {[%clk 0:00:35.4]} 26... Ra8+ {[%clk 0:00:26]} 27. Kb5 {[%clk 0:00:34.5]} 27... Rb8+ {[%clk 0:00:25.3]} 28. Ka4 {[%clk 0:00:32.1]} 28... Qa7# {[%clk 0:00:24.1]} 0-1

[Event "Live Chess"]
[Site "Chess.com"]
[Date "2010.12.06"]
[Round "-"]
[White "hipposcottimus"]
[Black "JeeBusSS"]
[Result "1-0"]
[CurrentPosition "r2qkbnr/p2p1Q1p/b1n5/4p3/2N1P1P1/8/PPP3PP/RNB2RK1 b kq -"]
[Timezone "UTC"]
[ECO "C40"]
[ECOUrl "https://www.chess.com/openings/Kings-Pawn-Opening-Kings-Knight-Damiano-Defense"]
[UTCDate "2010.12.06"]
[UTCTime "23:05:25"]
[WhiteElo "1638"]
[BlackElo "1501"]
[TimeControl "60"]
[Termination "hipposcottimus won by checkmate"]
[StartTime "23:05:25"]
[EndDate "2010.12.06"]
[EndTime "23:05:52"]
[Link "https://www.chess.com/game/live/74742802"]

1. e4 {[%clk 0:01:00]} 1... e5 {[%clk 0:01:00]} 2. Nf3 {[%clk 0:00:59.7]} 2... f6 {[%clk 0:00:59.2]} 3. Bc4 {[%clk 0:00:59.4]} 3... g5 {[%clk 0:00:58.9]} 4. d4 {[%clk 0:00:59.2]} 4... g4 {[%clk 0:00:58.5]} 5. Nfd2 {[%clk 0:00:58.1]} 5... b6 {[%clk 0:00:58.1]} 6. dxe5 {[%clk 0:00:56.9]} 6... c6 {[%clk 0:00:57.8]} 7. f3 {[%clk 0:00:56.5]} 7... b5 {[%clk 0:00:57.3]} 8. Bb3 {[%clk 0:00:56.2]} 8... fxe5 {[%clk 0:00:56.8]} 9. fxg4 {[%clk 0:00:55.3]} 9... c5 {[%clk 0:00:56.4]} 10. O-O {[%clk 0:00:54.5]} 10... c4 {[%clk 0:00:56]} 11. Bxc4 {[%clk 0:00:54.1]} 11... bxc4 {[%clk 0:00:55.4]} 12. Nxc4 {[%clk 0:00:53.8]} 12... Nc6 {[%clk 0:00:54.1]} 13. Qf3 {[%clk 0:00:48.5]} 13... Ba6 {[%clk 0:00:53.7]} 14. Qf7# {[%clk 0:00:47]} 1-0

[Event "Live Chess"]
[Site "Chess.com"]
[Date "2010.12.06"]
[Round "-"]
[White "hipposcottimus"]
[Black "hlyrad"]
[Result "0-1"]
[CurrentPosition "r2r4/1p3ppk/p3qb2/4p3/8/8/PP3PPP/R3R1K1 w - -"]
[Timezone "UTC"]
[ECO "B20"]
[ECOUrl "https://www.chess.com/openings/Sicilian-Defense"]
[UTCDate "2010.12.06"]
[UTCTime "23:03:43"]
[WhiteElo "1633"]
[BlackElo "1596"]
[TimeControl "60"]
[Termination "hlyrad won by resignation"]
[StartTime "23:03:43"]
[EndDate "2010.12.06"]
[EndTime "23:05:16"]
[Link "https://www.chess.com/game/live/74742377"]

1. e4 {[%clk 0:01:00]} 1... c5 {[%clk 0:01:00]} 2. Bb5 {[%clk 0:00:58.6]} 2... e6 {[%clk 0:00:57.6]} 3. Nf3 {[%clk 0:00:57.8]} 3... Nf6 {[%clk 0:00:56.9]} 4. d4 {[%clk 0:00:57.6]} 4... a6 {[%clk 0:00:56.2]} 5. e5 {[%clk 0:00:55.8]} 5... Nd5 {[%clk 0:00:55.1]} 6. Bc4 {[%clk 0:00:54.1]} 6... Nb6 {[%clk 0:00:52.4]} 7. Bb3 {[%clk 0:00:52.7]} 7... Nc6 {[%clk 0:00:51.6]} 8. c3 {[%clk 0:00:51.3]} 8... cxd4 {[%clk 0:00:50.6]} 9. cxd4 {[%clk 0:00:50.6]} 9... Be7 {[%clk 0:00:46.3]} 10. Nc3 {[%clk 0:00:50.2]} 10... O-O {[%clk 0:00:45.2]} 11. O-O {[%clk 0:00:48.6]} 11... d6 {[%clk 0:00:41.7]} 12. d5 {[%clk 0:00:46.8]} 12... exd5 {[%clk 0:00:40.5]} 13. Nxd5 {[%clk 0:00:46]} 13... Nxd5 {[%clk 0:00:39.5]} 14. Bxd5 {[%clk 0:00:45]} 14... Nxe5 {[%clk 0:00:37.2]} 15. Nxe5 {[%clk 0:00:40.9]} 15... dxe5 {[%clk 0:00:36.4]} 16. Re1 {[%clk 0:00:39.5]} 16... Bf6 {[%clk 0:00:34]} 17. Be3 {[%clk 0:00:35.7]} 17... Qc7 {[%clk 0:00:32.5]} 18. Bc5 {[%clk 0:00:33.8]} 18... Rd8 {[%clk 0:00:30.9]} 19. Qd3 {[%clk 0:00:29]} 19... Be6 {[%clk 0:00:30]} 20. Bd6 {[%clk 0:00:16.1]} 20... Qxd6 {[%clk 0:00:29]} 21. Qxh7+ {[%clk 0:00:13.1]} 21... Kxh7 {[%clk 0:00:27.3]} 22. Bxe6 {[%clk 0:00:12.8]} 22... Qxe6 {[%clk 0:00:26.1]} 0-1

[Event "Live Chess"]
[Site "Chess.com"]
[Date "2010.12.06"]
[Round "-"]
[White "hlyrad"]
[Black "hipposcottimus"]
[Result "1-0"]
[CurrentPosition "4rk2/3R1B1p/6p1/5p2/1B6/4rP2/1P3K2/7R b - -"]
[Timezone "UTC"]
[ECO "D02"]
[ECOUrl "https://www.chess.com/openings/Queens-Pawn-Opening-Zukertort-Variation"]
[UTCDate "2010.12.06"]
[UTCTime "23:01:27"]
[WhiteElo "1587"]
[BlackElo "1642"]
[TimeControl "60"]
[Termination "hlyrad won on time"]
[StartTime "23:01:27"]
[EndDate "2010.12.06"]
[EndTime "23:03:35"]
[Link "https://www.chess.com/game/live/74741849"]

1. Nf3 {[%clk 0:01:00]} 1... d5 {[%clk 0:01:00]} 2. d4 {[%clk 0:00:58.7]} 2... Bg4 {[%clk 0:00:59.7]} 3. e3 {[%clk 0:00:56.9]} 3... Nf6 {[%clk 0:00:58.9]} 4. c4 {[%clk 0:00:55.8]} 4... Nc6 {[%clk 0:00:56.2]} 5. Nc3 {[%clk 0:00:55]} 5... e6 {[%clk 0:00:54.2]} 6. a3 {[%clk 0:00:54.4]} 6... Be7 {[%clk 0:00:50]} 7. h3 {[%clk 0:00:53.3]} 7... Bh5 {[%clk 0:00:48.5]} 8. g4 {[%clk 0:00:51.7]} 8... Nxg4 {[%clk 0:00:47.8]} 9. hxg4 {[%clk 0:00:51]} 9... Bxg4 {[%clk 0:00:47.5]} 10. Bg2 {[%clk 0:00:50.3]} 10... O-O {[%clk 0:00:45.3]} 11. Qd3 {[%clk 0:00:48.5]} 11... Bf5 {[%clk 0:00:43]} 12. e4 {[%clk 0:00:46]} 12... dxe4 {[%clk 0:00:41.7]} 13. Nxe4 {[%clk 0:00:45]} 13... Bf6 {[%clk 0:00:36.9]} 14. Bf4 {[%clk 0:00:39.1]} 14... Nxd4 {[%clk 0:00:33.1]} 15. Nxf6+ {[%clk 0:00:37.7]} 15... Qxf6 {[%clk 0:00:30.6]} 16. Qxd4 {[%clk 0:00:36.7]} 16... Qxd4 {[%clk 0:00:26.1]} 17. Nxd4 {[%clk 0:00:35.9]} 17... Bg4 {[%clk 0:00:25.7]} 18. f3 {[%clk 0:00:34.1]} 18... Bf5 {[%clk 0:00:25.2]} 19. Nxf5 {[%clk 0:00:33]} 19... exf5 {[%clk 0:00:24.9]} 20. Bh3 {[%clk 0:00:31.9]} 20... Rfe8+ {[%clk 0:00:24.5]} 21. Kf2 {[%clk 0:00:29.4]} 21... g6 {[%clk 0:00:24]} 22. Bg5 {[%clk 0:00:24.8]} 22... c6 {[%clk 0:00:23.7]} 23. Bf6 {[%clk 0:00:24]} 23... Re6 {[%clk 0:00:20.5]} 24. Bc3 {[%clk 0:00:23.1]} 24... b5 {[%clk 0:00:18.9]} 25. cxb5 {[%clk 0:00:21.6]} 25... cxb5 {[%clk 0:00:18.5]} 26. Rad1 {[%clk 0:00:20.6]} 26... a5 {[%clk 0:00:18.1]} 27. Rd7 {[%clk 0:00:19.6]} 27... Rae8 {[%clk 0:00:17.4]} 28. Bf1 {[%clk 0:00:15.4]} 28... b4 {[%clk 0:00:15.5]} 29. Bc4 {[%clk 0:00:11.9]} 29... Re3 {[%clk 0:00:12.5]} 30. axb4 {[%clk 0:00:09.7]} 30... axb4 {[%clk 0:00:04]} 31. Bxf7+ {[%clk 0:00:07.4]} 31... Kf8 {[%clk 0:00:02.3]} 32. Bxb4+ {[%clk 0:00:05.7]} 1-0

[Event "Live Chess"]
[Site "Chess.com"]
[Date "2010.12.06"]
[Round "-"]
[White "hipposcottimus"]
[Black "hlyrad"]
[Result "1-0"]
[CurrentPosition "r4rk1/5ppp/p1pb4/1p6/4p1bQ/1N2q3/PPP3PP/R4R1K b - -"]
[Timezone "UTC"]
[ECO "B20"]
[ECOUrl "https://www.chess.com/openings/Sicilian-Defense"]
[UTCDate "2010.12.06"]
[UTCTime "22:59:05"]
[WhiteElo "1651"]
[BlackElo "1576"]
[TimeControl "60"]
[Termination "hipposcottimus won on time"]
[StartTime "22:59:05"]
[EndDate "2010.12.06"]
[EndTime "23:01:13"]
[Link "https://www.chess.com/game/live/74741297"]

1. e4 {[%clk 0:01:00]} 1... c5 {[%clk 0:01:00]} 2. Bb5 {[%clk 0:00:58]} 2... Nf6 {[%clk 0:00:57]} 3. e5 {[%clk 0:00:55.9]} 3... Ng8 {[%clk 0:00:54.4]} 4. Nf3 {[%clk 0:00:54.4]} 4... e6 {[%clk 0:00:52.4]} 5. d4 {[%clk 0:00:53.4]} 5... cxd4 {[%clk 0:00:50.9]} 6. Nxd4 {[%clk 0:00:52.6]} 6... Qa5+ {[%clk 0:00:47.2]} 7. Nc3 {[%clk 0:00:50]} 7... a6 {[%clk 0:00:45.1]} 8. Ba4 {[%clk 0:00:48.9]} 8... Qxe5+ {[%clk 0:00:44]} 9. Be3 {[%clk 0:00:46.2]} 9... Bc5 {[%clk 0:00:42]} 10. O-O {[%clk 0:00:44.4]} 10... Nf6 {[%clk 0:00:40]} 11. Nf3 {[%clk 0:00:32.2]} 11... Qh5 {[%clk 0:00:38.4]} 12. Bg5 {[%clk 0:00:28.5]} 12... Ng4 {[%clk 0:00:34.3]} 13. Bh4 {[%clk 0:00:23.1]} 13... O-O {[%clk 0:00:31.3]} 14. Bg3 {[%clk 0:00:22.7]} 14... Nc6 {[%clk 0:00:28.1]} 15. Ne4 {[%clk 0:00:22.1]} 15... Be7 {[%clk 0:00:26]} 16. Bxc6 {[%clk 0:00:20.5]} 16... dxc6 {[%clk 0:00:24.3]} 17. Ned2 {[%clk 0:00:13.9]} 17... e5 {[%clk 0:00:23.2]} 18. Nb3 {[%clk 0:00:13.6]} 18... e4 {[%clk 0:00:21.8]} 19. Ne5 {[%clk 0:00:11.6]} 19... Nxe5 {[%clk 0:00:19.1]} 20. Bxe5 {[%clk 0:00:09.4]} 20... Qxe5 {[%clk 0:00:17.6]} 21. Re1 {[%clk 0:00:09.1]} 21... Bd6 {[%clk 0:00:16.5]} 22. f4 {[%clk 0:00:06.9]} 22... Qxf4 {[%clk 0:00:14.4]} 23. Qh5 {[%clk 0:00:05.2]} 23... Bg4 {[%clk 0:00:09.3]} 24. Qh4 {[%clk 0:00:04.3]} 24... b5 {[%clk 0:00:03.8]} 25. Rf1 {[%clk 0:00:03.9]} 25... Qe3+ {[%clk 0:00:02.4]} 26. Kh1 {[%clk 0:00:02.5]} 1-0

[Event "Live Chess"]
[Site "Chess.com"]
[Date "2010.12.06"]
[Round "-"]
[White "hipposcottimus"]
[Black "CaptainObvious"]
[Result "1-0"]
[CurrentPosition "6r1/2bk1p2/p2p4/2pBR3/2P5/8/Pr4PP/R1Q3K1 b - -"]
[Timezone "UTC"]
[ECO "B20"]
[ECOUrl "https://www.chess.com/openings/Sicilian-Defense"]
[UTCDate "2010.12.06"]
[UTCTime "22:56:52"]
[WhiteElo "1644"]
[BlackElo "1503"]
[TimeControl "60"]
[Termination "hipposcottimus won on time"]
[StartTime "22:56:52"]
[EndDate "2010.12.06"]
[EndTime "22:58:44"]
[Link "https://www.chess.com/game/live/74740789"]

1. e4 {[%clk 0:01:00]} 1... c5 {[%clk 0:01:00]} 2. Bb5 {[%clk 0:00:58.2]} 2... a6 {[%clk 0:00:58.4]} 3. Be2 {[%clk 0:00:57.9]} 3... b6 {[%clk 0:00:57.2]} 4. Nf3 {[%clk 0:00:57.6]} 4... Bb7 {[%clk 0:00:56.3]} 5. d4 {[%clk 0:00:57.3]} 5... Bxe4 {[%clk 0:00:54.9]} 6. dxc5 {[%clk 0:00:56.9]} 6... bxc5 {[%clk 0:00:53.8]} 7. Ng5 {[%clk 0:00:55.1]} 7... Bb7 {[%clk 0:00:52.2]} 8. Nf3 {[%clk 0:00:53.8]} 8... e6 {[%clk 0:00:49.4]} 9. O-O {[%clk 0:00:53.3]} 9... Bd6 {[%clk 0:00:46.8]} 10. c4 {[%clk 0:00:53]} 10... Bc7 {[%clk 0:00:45.5]} 11. Nc3 {[%clk 0:00:52.5]} 11... d6 {[%clk 0:00:44.9]} 12. Ne4 {[%clk 0:00:51.8]} 12... Ne7 {[%clk 0:00:43.8]} 13. Bf4 {[%clk 0:00:49]} 13... e5 {[%clk 0:00:41.6]} 14. Bg5 {[%clk 0:00:47.4]} 14... h6 {[%clk 0:00:40.2]} 15. Bh4 {[%clk 0:00:46]} 15... g5 {[%clk 0:00:38.7]} 16. Nfxg5 {[%clk 0:00:45.3]} 16... hxg5 {[%clk 0:00:37.4]} 17. Bxg5 {[%clk 0:00:43.7]} 17... Qd7 {[%clk 0:00:35.7]} 18. Nf6+ {[%clk 0:00:42.9]} 18... Kd8 {[%clk 0:00:26.9]} 19. Nxd7 {[%clk 0:00:41.6]} 19... Kxd7 {[%clk 0:00:26.1]} 20. Bg4+ {[%clk 0:00:39.4]} 20... Ke8 {[%clk 0:00:22.5]} 21. f4 {[%clk 0:00:33.8]} 21... Ng6 {[%clk 0:00:20]} 22. fxe5 {[%clk 0:00:31.2]} 22... Nxe5 {[%clk 0:00:19]} 23. Re1 {[%clk 0:00:30]} 23... Rg8 {[%clk 0:00:17]} 24. Bf4 {[%clk 0:00:27.5]} 24... Bc8 {[%clk 0:00:11.4]} 25. Bxc8 {[%clk 0:00:25.4]} 25... Nd7 {[%clk 0:00:10]} 26. Bxe5 {[%clk 0:00:24.7]} 26... Nxe5 {[%clk 0:00:08.3]} 27. Bb7 {[%clk 0:00:23.3]} 27... Rb8 {[%clk 0:00:05.9]} 28. Bd5 {[%clk 0:00:23]} 28... Rxb2 {[%clk 0:00:04]} 29. Rxe5+ {[%clk 0:00:22.7]} 29... Kd7 {[%clk 0:00:00.5]} 30. Qc1 {[%clk 0:00:22.3]} 1-0

[Event "Live Chess"]
[Site "Chess.com"]
[Date "2010.12.06"]
[Round "-"]
[White "hipposcottimus"]
[Black "DoctorManhattan"]
[Result "0-1"]
[CurrentPosition "r1b1k2r/pp3ppp/2n2n2/8/8/2N1q3/PPP1B1PP/R3K2R w KQkq -"]
[Timezone "UTC"]
[ECO "B01"]
[ECOUrl "https://www.chess.com/openings/Scandinavian-Defense-Blackburne-Kloosterboer-Gambit-3.dxc6-Nxc6"]
[UTCDate "2010.12.06"]
[UTCTime "22:56:19"]
[WhiteElo "1644"]
[BlackElo "2003"]
[TimeControl "60"]
[Termination "DoctorManhattan won by resignation"]
[StartTime "22:56:19"]
[EndDate "2010.12.06"]
[EndTime "22:56:49"]
[Link "https://www.chess.com/game/live/74740628"]

1. e4 {[%clk 0:01:00]} 1... d5 {[%clk 0:01:00]} 2. exd5 {[%clk 0:00:58.2]} 2... c6 {[%clk 0:00:59]} 3. dxc6 {[%clk 0:00:56.5]} 3... Nxc6 {[%clk 0:00:58.8]} 4. Nc3 {[%clk 0:00:55.1]} 4... e5 {[%clk 0:00:58.6]} 5. d3 {[%clk 0:00:54.6]} 5... Nf6 {[%clk 0:00:58.2]} 6. Be3 {[%clk 0:00:53.9]} 6... Bc5 {[%clk 0:00:57.5]} 7. Nf3 {[%clk 0:00:53.6]} 7... Bxe3 {[%clk 0:00:56.7]} 8. fxe3 {[%clk 0:00:53.4]} 8... Qb6 {[%clk 0:00:56.2]} 9. Be2 {[%clk 0:00:53.2]} 9... Qxe3 {[%clk 0:00:55.5]} 10. Qd2 {[%clk 0:00:48.9]} 10... Qb6 {[%clk 0:00:54.7]} 11. d4 {[%clk 0:00:46.6]} 11... exd4 {[%clk 0:00:53.6]} 12. Nxd4 {[%clk 0:00:46.3]} 12... Qxd4 {[%clk 0:00:52]} 13. Qe3+ {[%clk 0:00:46]} 13... Qxe3 {[%clk 0:00:51]} 0-1

[Event "Live Chess"]
[Site "Chess.com"]
[Date "2010.12.06"]
[Round "-"]
[White "DoctorManhattan"]
[Black "hipposcottimus"]
[Result "0-1"]
[CurrentPosition "N4k2/p2Q1ppp/8/8/3Pp2P/P7/1r3qP1/R4K1R w - -"]
[Timezone "UTC"]
[ECO "A00"]
[ECOUrl "https://www.chess.com/openings/Saragossa-Opening-1...e5"]
[UTCDate "2010.12.06"]
[UTCTime "22:54:42"]
[WhiteElo "2003"]
[BlackElo "1644"]
[TimeControl "60"]
[Termination "hipposcottimus won by checkmate"]
[StartTime "22:54:42"]
[EndDate "2010.12.06"]
[EndTime "22:56:11"]
[Link "https://www.chess.com/game/live/74740200"]

1. c3 {[%clk 0:01:00]} 1... e5 {[%clk 0:01:00]} 2. d4 {[%clk 0:00:59.8]} 2... e4 {[%clk 0:00:59.6]} 3. Bf4 {[%clk 0:00:59]} 3... d5 {[%clk 0:00:59.2]} 4. h4 {[%clk 0:00:58.2]} 4... Bd6 {[%clk 0:00:58.8]} 5. Bxd6 {[%clk 0:00:56.4]} 5... Qxd6 {[%clk 0:00:58.5]} 6. e3 {[%clk 0:00:56.1]} 6... Nf6 {[%clk 0:00:58.2]} 7. Ne2 {[%clk 0:00:55.4]} 7... c5 {[%clk 0:00:57.1]} 8. Nf4 {[%clk 0:00:54.7]} 8... cxd4 {[%clk 0:00:55.8]} 9. cxd4 {[%clk 0:00:54.4]} 9... Nc6 {[%clk 0:00:53.9]} 10. a3 {[%clk 0:00:53.8]} 10... Bg4 {[%clk 0:00:50.6]} 11. Be2 {[%clk 0:00:52.2]} 11... Bxe2 {[%clk 0:00:47.4]} 12. Qxe2 {[%clk 0:00:52]} 12... Nxd4 {[%clk 0:00:46.5]} 13. exd4 {[%clk 0:00:48.7]} 13... Qxf4 {[%clk 0:00:45.5]} 14. Qb5+ {[%clk 0:00:47.2]} 14... Ke7 {[%clk 0:00:42]} 15. Qxb7+ {[%clk 0:00:46.4]} 15... Nd7 {[%clk 0:00:41.6]} 16. Nc3 {[%clk 0:00:43.9]} 16... Rhb8 {[%clk 0:00:38.2]} 17. Nxd5+ {[%clk 0:00:42.9]} 17... Kf8 {[%clk 0:00:34.9]} 18. Qxd7 {[%clk 0:00:40.5]} 18... Qh6 {[%clk 0:00:26.3]} 19. Nc7 {[%clk 0:00:28]} 19... Rxb2 {[%clk 0:00:20.5]} 20. Nxa8 {[%clk 0:00:26.5]} 20... Qd2+ {[%clk 0:00:18.8]} 21. Kf1 {[%clk 0:00:24.1]} 21... Qxf2# {[%clk 0:00:18]} 0-1

[Event "Live Chess"]
[Site "Chess.com"]
[Date "2010.12.06"]
[Round "-"]
[White "NinjaBoy"]
[Black "hipposcottimus"]
[Result "0-1"]
[CurrentPosition "5r1k/r5pp/3R4/2p5/2B5/1PP1P2P/qK4P1/2B4R w - -"]
[Timezone "UTC"]
[ECO "D02"]
[ECOUrl "https://www.chess.com/openings/Queens-Pawn-Opening-Zukertort-Variation-2...c6-3.Bg5"]
[UTCDate "2010.12.06"]
[UTCTime "22:51:29"]
[WhiteElo "1649"]
[BlackElo "1644"]
[TimeControl "60"]
[Termination "hipposcottimus won by checkmate"]
[StartTime "22:51:29"]
[EndDate "2010.12.06"]
[EndTime "22:53:32"]
[Link "https://www.chess.com/game/live/74739387"]

1. d4 {[%clk 0:01:00]} 1... d5 {[%clk 0:01:00]} 2. Nf3 {[%clk 0:01:00]} 2... c6 {[%clk 0:00:59.7]} 3. Bg5 {[%clk 0:00:59.5]} 3... Nd7 {[%clk 0:00:59.4]} 4. h3 {[%clk 0:00:58.5]} 4... f6 {[%clk 0:00:59.1]} 5. Bf4 {[%clk 0:00:57.3]} 5... e5 {[%clk 0:00:58.8]} 6. dxe5 {[%clk 0:00:55.6]} 6... fxe5 {[%clk 0:00:58.5]} 7. Bd2 {[%clk 0:00:55.1]} 7... Ngf6 {[%clk 0:00:57.7]} 8. Nc3 {[%clk 0:00:53.4]} 8... e4 {[%clk 0:00:57]} 9. Nd4 {[%clk 0:00:51.7]} 9... c5 {[%clk 0:00:54.9]} 10. Ne6 {[%clk 0:00:51]} 10... Qe7 {[%clk 0:00:52.7]} 11. Nxf8 {[%clk 0:00:50.3]} 11... Qxf8 {[%clk 0:00:51.7]} 12. Nb5 {[%clk 0:00:47.8]} 12... Rb8 {[%clk 0:00:40.6]} 13. Nc7+ {[%clk 0:00:46.3]} 13... Kf7 {[%clk 0:00:40.3]} 14. Nb5 {[%clk 0:00:43.1]} 14... Qe7 {[%clk 0:00:39.1]} 15. Nxa7 {[%clk 0:00:42.4]} 15... Rf8 {[%clk 0:00:37.4]} 16. Nb5 {[%clk 0:00:40.6]} 16... Kg8 {[%clk 0:00:35.7]} 17. Na7 {[%clk 0:00:39.7]} 17... Nb6 {[%clk 0:00:32.9]} 18. Nxc8 {[%clk 0:00:38.9]} 18... Rbxc8 {[%clk 0:00:31.7]} 19. Bg5 {[%clk 0:00:37.6]} 19... Qe6 {[%clk 0:00:30.3]} 20. Bxf6 {[%clk 0:00:36.7]} 20... Rf7 {[%clk 0:00:29.9]} 21. Bc3 {[%clk 0:00:34.4]} 21... d4 {[%clk 0:00:27.8]} 22. Bd2 {[%clk 0:00:32.5]} 22... Nc4 {[%clk 0:00:27.4]} 23. c3 {[%clk 0:00:29]} 23... d3 {[%clk 0:00:21.8]} 24. e3 {[%clk 0:00:28.3]} 24... Qf6 {[%clk 0:00:19.4]} 25. f3 {[%clk 0:00:27]} 25... exf3 {[%clk 0:00:18]} 26. Qxf3 {[%clk 0:00:26.5]} 26... Qe6 {[%clk 0:00:16.2]} 27. O-O-O {[%clk 0:00:23.6]} 27... Rcf8 {[%clk 0:00:15.9]} 28. Qxb7 {[%clk 0:00:20.4]} 28... Rxb7 {[%clk 0:00:13.7]} 29. Bxd3 {[%clk 0:00:19.7]} 29... Qb6 {[%clk 0:00:12.9]} 30. Bxc4+ {[%clk 0:00:18.7]} 30... Kh8 {[%clk 0:00:10.9]} 31. b3 {[%clk 0:00:15.5]} 31... Qa6 {[%clk 0:00:08.8]} 32. Kb2 {[%clk 0:00:14]} 32... Qb6 {[%clk 0:00:07.6]} 33. Bc1 {[%clk 0:00:13.2]} 33... Ra7 {[%clk 0:00:07.1]} 34. Rd5 {[%clk 0:00:12.2]} 34... Qa5 {[%clk 0:00:06.6]} 35. Rd6 {[%clk 0:00:09.4]} 35... Qxa2# {[%clk 0:00:05.5]} 0-1